bitfinex-derivatives/quotes_BTCF0:USTF0_20250313
["timestamp","ask_amount","ask_price","bid_price","bid_amount"]
[1741871015078,0.1207188,82852.0,82851.0,0.0603595]
[1741871015384,0.1207203,82851.0,82850.0,0.2158]
[1741871015570,0.1207203,82851.0,82850.0,0.3365217]
[1741871015776,1.46422035,82854.0,82853.0,0.1207174]
[1741871015976,1.46334034,82854.0,82853.0,0.1207174]
[1741871016181,0.0603593,82853.0,82850.0,0.2158]
[1741871016382,0.1207203,82851.0,82850.0,0.2158]
[1741871016576,0.1207465,82833.0,82832.0,0.12092844]
[1741871016976,0.0603724,82835.0,82834.0,0.1207451]
[1741871017174,0.1207465,82833.0,82832.0,0.00018114]
[1741871017579,0.2183,82842.0,82832.0,0.00018114]
[1741871017779,0.1207294,82845.0,82844.0,0.1207305]
[1741871018089,0.1207294,82845.0,82832.0,0.00018114]
[1741871018090,0.1207451,82835.0,82834.0,0.1207416]
[1741871018589,0.16412,82847.0,82834.0,0.1207416]
[1741871018590,0.16396,82851.0,82850.0,0.1207217]
[1741871018775,0.2846803,82851.0,82850.0,0.1207217]
[1741871019276,0.16396,82851.0,82850.0,0.1207217]
[1741871019478,0.2846803,82851.0,82850.0,0.1207217]
[1741871019678,0.1207217,82850.0,82849.0,0.3291217]
[1741871020077,0.1207217,82850.0,82849.0,0.2084]
[1741871020586,0.4238,82850.0,82820.0,0.0603822]
[1741871020888,0.0603724,82835.0,82820.0,0.0603822]
[1741871021184,0.1207465,82833.0,82818.0,0.0603836]
[1741871021580,0.1207465,82833.0,82799.0,0.0603976]
[1741871021799,0.3363465,82833.0,82832.0,4e-08]
[1741871022885,0.4863465,82833.0,82832.0,4e-08]
[1741871024287,0.4990665,82833.0,82832.0,4e-08]
[1741871024585,0.4991065,82833.0,82832.0,4e-08]
[1741871024984,0.70783156,82833.0,82832.0,4e-08]
[1741871026190,0.55783156,82833.0,82832.0,4e-08]
[1741871026881,0.70783156,82833.0,82832.0,4e-08]
[1741871027187,0.603861,82816.0,82799.0,0.2087]
[1741871027387,0.1207961,82799.0,82791.0,0.2139]
[1741871027582,0.0603954,82803.0,82792.0,0.2014]
[1741871027583,0.1208048,82793.0,82792.0,0.2014]
[1741871027787,0.1812392,82780.0,82779.0,0.1208241]
[1741871027994,0.1812392,82780.0,82779.0,0.2014]
[1741871027995,0.1812363,82780.0,82779.0,0.2014]
[1741871028386,0.2759125,82780.0,82779.0,0.2014]
[1741871028587,0.0604125,82780.0,82779.0,0.2014]
[1741871029190,0.2759125,82780.0,82779.0,0.2014]
[1741871029384,0.4968125,82780.0,82779.0,0.2014]
[1741871030295,0.1208311,82775.0,82774.0,0.36018667]
[1741871030483,0.0604135,82778.0,82774.0,0.36018667]
[1741871030484,0.1812361,82782.0,82774.0,0.36018667]
[1741871030677,0.01234313,82786.0,82774.0,0.36018667]
[1741871030882,0.1812375,82782.0,82781.0,0.1208192]
[1741871031386,0.0604115,82782.0,82781.0,0.1208192]
[1741871031592,0.12099574,82788.0,82787.0,0.1208136]
[1741871031992,0.00018114,82788.0,82787.0,0.1208136]
[1741871032197,0.1811946,82802.0,82801.0,0.0603954]
[1741871032494,0.1207961,82800.0,82799.0,0.0603974]
[1741871032685,0.1207961,82800.0,82799.0,0.2620974]
[1741871032889,0.1207961,82800.0,82799.0,0.2017]
[1741871033288,0.3231961,82800.0,82799.0,0.2017]
[1741871034296,0.5266961,82800.0,82799.0,0.2017]
[1741871034886,0.5266961,82800.0,82791.0,0.00018114]
[1741871034887,0.4059,82800.0,82791.0,0.00018114]
[1741871035197,0.1208063,82792.0,82791.0,0.00018114]
[1741871035389,0.1208063,82792.0,82791.0,0.12098894]
[1741871035592,0.1208063,82792.0,82791.0,0.00018114]
[1741871036299,0.5549063,82792.0,82791.0,0.00018114]
[1741871037201,0.1208063,82792.0,82791.0,0.12098894]
[1741871037896,0.1606,82795.0,82794.0,0.1208034]
[1741871038093,0.2814019,82795.0,82794.0,0.1208034]
[1741871038294,0.1606,82795.0,82794.0,0.1208034]
[1741871038803,0.2209107,82810.0,82807.0,0.1207844]
[1741871039003,0.16052,82810.0,82807.0,0.3280844]
[1741871039202,0.15532628,82814.0,82807.0,0.3280844]
[1741871039203,0.14313669,82814.0,82807.0,0.3280844]
[1741871039704,0.0603883,82813.0,82807.0,0.3280844]
[1741871039888,0.12096414,82808.0,82807.0,0.3280844]
[1741871040095,0.00018114,82808.0,82807.0,0.3280844]
[1741871040300,0.12096414,82808.0,82807.0,0.3280844]
[1741871040696,0.12096414,82808.0,82807.0,0.2073]
[1741871041205,0.12096414,82808.0,82807.0,0.3280844]
[1741871041405,0.12096414,82808.0,82807.0,0.2073]
[1741871041591,0.12096414,82808.0,82807.0,0.3280844]
[1741871041793,0.12096414,82808.0,82807.0,0.2073]
[1741871041995,0.32896414,82808.0,82807.0,0.2073]
[1741871042201,0.00018114,82808.0,82807.0,0.2073]
[1741871042511,0.00018114,82808.0,82807.0,0.3280844]
[1741871042699,0.12096414,82808.0,82807.0,0.3280844]
[1741871043798,0.12096414,82808.0,82807.0,0.2073]
[1741871044206,0.1812,82798.0,82797.0,0.0603993]
[1741871044401,0.00018114,82808.0,82796.0,0.2017]
[1741871044605,0.12096504,82808.0,82805.0,0.0603929]
[1741871044804,0.1207844,82807.0,82806.0,0.2017]
[1741871045005,0.00018114,82808.0,82807.0,0.1207844]
[1741871045304,0.12096444,82808.0,82807.0,0.1207844]
[1741871046412,0.00018114,82808.0,82807.0,0.1207844]
[1741871047209,0.1207503,82831.0,82826.0,0.1207567]
[1741871047407,0.2745701,82838.0,82826.0,0.1207567]
[1741871047713,0.15944,82842.0,82826.0,0.1207567]
[1741871047915,0.1207363,82840.0,82831.0,0.1207494]
[1741871048207,0.00088001,82853.0,82848.0,0.1207247]
[1741871048408,0.060349,82867.0,82848.0,0.1207247]
[1741871048611,0.00018114,82857.0,82848.0,0.39]
[1741871048910,0.00092,82884.0,82863.0,0.1207028]
[1741871049115,0.45008886,82878.0,82877.0,0.1206824]
[1741871049316,0.0603385,82881.0,82875.0,0.060342]
[1741871049515,0.1810231,82879.0,82878.0,0.0603399]
[1741871049714,0.1206824,82877.0,82876.0,0.1989]
[1741871049913,0.1206824,82877.0,82876.0,0.3195839]
[1741871050917,0.3274824,82877.0,82876.0,0.3195839]
[1741871051108,0.1206824,82877.0,82876.0,0.3195839]
[1741871051307,0.1206824,82877.0,82876.0,0.1989]
[1741871051502,0.3274824,82877.0,82876.0,0.1989]
[1741871051920,0.1206941,82869.0,82868.0,0.00018102]
[1741871052123,0.1206941,82869.0,82868.0,0.12087652]
[1741871052511,0.2032,82876.0,82872.0,0.0603447]
[1741871052728,1.12022319,83045.0,82878.0,0.120681]
[1741871052729,0.2802403,82879.0,82878.0,0.120681]
[1741871053019,0.2802403,82879.0,82873.0,0.2057]
[1741871053020,0.1206868,82874.0,82873.0,0.5422876]
[1741871053215,0.1206868,82874.0,82873.0,0.2159]
[1741871053619,0.1206868,82874.0,82873.0,0.3365882]
[1741871054116,0.15956,82879.0,82868.0,0.00018102]
[1741871054318,0.1206941,82869.0,82868.0,0.12087652]
[1741871055221,0.1206941,82869.0,82868.0,0.00018102]
[1741871055525,0.1206941,82869.0,82868.0,0.12087652]
[1741871056320,0.1810403,82871.0,82870.0,0.1206926]
[1741871057119,0.1206941,82869.0,82868.0,0.00018102]
[1741871057322,0.1206941,82869.0,82868.0,2e-08]
[1741871058418,0.1206941,82869.0,82868.0,0.12069552]
[1741871058620,0.1206941,82869.0,82868.0,2e-08]
[1741871059123,0.1206941,82869.0,82868.0,0.12069552]
[1741871059520,0.1206941,82869.0,82868.0,2e-08]
[1741871060427,0.00092,82875.0,82868.0,0.06034712]
[1741871060624,0.2413839,82873.0,82872.0,0.1810232]
[1741871061530,0.1206941,82869.0,82868.0,2e-08]
[1741871061915,0.1206941,82869.0,82868.0,0.12069552]
[1741871062528,0.0603462,82871.0,82868.0,2e-08]
[1741871062830,0.0603462,82871.0,82870.0,0.1206926]
[1741871063420,0.06033,82893.0,82878.0,0.06034]
[1741871063633,0.06213555,82900.0,82884.0,0.1206722]
[1741871063923,0.06213555,82900.0,82896.0,0.1206518]
[1741871063924,0.1206539,82897.0,82896.0,0.1206518]
[1741871064119,0.1206547,82896.0,82895.0,0.2016]
[1741871064431,0.2413415,82889.0,82888.0,0.0603294]
[1741871064631,0.2413415,82889.0,82888.0,0.2619294]
[1741871065022,0.1206691,82889.0,82888.0,0.2619294]
[1741871065622,0.6028577,82954.0,82896.0,0.1206547]
[1741871065828,0.1208343,82897.0,82896.0,0.1206547]
[1741871066031,0.000181,82897.0,82870.0,0.27300127]
[1741871066227,0.1206722,82885.0,82884.0,0.1206716]
[1741871066430,0.1206722,82885.0,82884.0,0.2101]
[1741871066628,0.1206722,82885.0,82880.0,0.00018102]
[1741871066629,0.1206766,82881.0,82880.0,0.00018102]
[1741871066818,0.0603375,82883.0,82882.0,0.1206751]
[1741871067026,0.3309734,82884.0,82883.0,0.1206737]
[1741871067430,0.2103,82884.0,82880.0,0.00018102]
[1741871067727,0.1206766,82881.0,82880.0,0.12085902]
[1741871067931,0.1206766,82881.0,82880.0,0.00018102]
[1741871069633,0.2796766,82881.0,82880.0,0.00018102]
[1741871072029,0.1206766,82881.0,82880.0,0.12085902]
[1741871072624,0.1206766,82881.0,82880.0,0.00018102]
[1741871073036,0.1206766,82881.0,82880.0,0.12085902]
[1741871073237,0.1206766,82881.0,82880.0,0.00018102]
[1741871073531,0.0603482,82868.0,82866.0,0.1206913]
[1741871073739,0.2094,82867.0,82857.0,0.21558602]
[1741871073921,0.0603531,82861.0,82857.0,0.21558602]
[1741871074133,0.1207101,82858.0,82857.0,0.21558602]
[1741871075037,0.13277777,82858.0,82857.0,0.33629752]
[1741871075430,0.13277777,82858.0,82857.0,0.21558602]
[1741871075637,0.1207159,82854.0,82853.0,0.2876946]
[1741871076136,0.1207217,82850.0,82849.0,0.04397334]
[1741871076337,0.2796817,82850.0,82849.0,0.00530004]
[1741871076538,0.2796817,82850.0,82849.0,4e-08]
[1741871076730,0.29159276,82850.0,82849.0,4e-08]
[1741871076922,0.120729,82845.0,82844.0,0.06147369]
[1741871077128,0.35776,82850.0,82822.0,0.1207615]
[1741871077326,0.1207611,82824.0,82823.0,0.1207609]
[1741871077534,0.1207611,82824.0,82823.0,0.5397609]
[1741871077722,0.1207611,82824.0,82823.0,0.419]
[1741871078223,0.1207611,82824.0,82823.0,0.5397611]
[1741871078925,0.1207576,82826.0,82825.0,0.1207567]
[1741871079331,0.1207576,82826.0,82825.0,0.5509567]
[1741871079529,0.2152,82827.0,82825.0,0.5509567]
[1741871079735,0.2152,82827.0,82826.0,0.1207567]
[1741871079932,0.00018102,82832.0,82831.0,0.1207494]
[1741871080626,0.159,82850.0,82849.0,0.1207232]
[1741871080827,0.2095,82855.0,82854.0,0.1207159]
[1741871081027,0.2095,82855.0,82844.0,0.217]
[1741871081232,0.1207203,82853.0,82852.0,0.1207159]
[1741871081426,0.1207203,82853.0,82852.0,0.0603587]
[1741871081625,0.3302203,82853.0,82852.0,0.0603587]
[1741871082240,0.2095,82853.0,82846.0,0.0603636]
[1741871082537,0.120729,82845.0,82844.0,0.00018102]
[1741871082738,0.279729,82845.0,82844.0,0.00018102]
[1741871084233,0.475729,82845.0,82844.0,0.00018102]
[1741871085029,0.475729,82845.0,82823.0,0.0603802]
[1741871085030,0.505,82845.0,82798.0,0.0603981]
[1741871085336,0.1207713,82816.0,82815.0,0.3191715]
[1741871085536,0.0603848,82818.0,82815.0,0.4155]
[1741871085736,0.0603848,82818.0,82817.0,0.1207698]
[1741871086033,0.0603829,82820.0,82819.0,0.1207669]
[1741871086642,0.2641816,82822.0,82819.0,0.1207669]
[1741871086643,0.2038,82822.0,82819.0,0.1207669]
[1741871086942,0.181144,82824.0,82823.0,0.1207582]
[1741871087131,0.00018102,82826.0,82825.0,0.1207582]
[1741871087331,0.12093772,82826.0,82825.0,0.1207582]
[1741871087531,0.00018102,82826.0,82825.0,0.1207582]
[1741871088333,0.12093772,82826.0,82825.0,0.1207582]
[1741871088541,2e-08,82826.0,82825.0,0.1807582]
[1741871088839,0.2,82850.0,82849.0,0.1207232]
[1741871089040,1.40232,82860.0,82850.0,0.1207217]
[1741871089231,0.00181162,82861.0,82850.0,0.1207217]
[1741871089541,0.120708,82860.0,82858.0,0.1207101]
[1741871089744,0.1207086,82859.0,82858.0,0.1207101]
[1741871089931,0.00181162,82861.0,82860.0,0.1207072]
[1741871090636,2e-08,82861.0,82860.0,0.2907072]
[1741871090839,0.29404925,82878.0,82863.0,0.0603512]
[1741871091045,0.28492526,82878.0,82872.0,0.1206897]
[1741871091340,0.28492526,82878.0,82877.0,0.1206824]
[1741871091640,0.3098533,82897.0,82896.0,0.1206547]
[1741871092231,0.000181,82905.0,82904.0,0.1206431]
[1741871092435,0.1809824,82900.0,82899.0,0.1206433]
[1741871092641,0.01178897,82902.0,82888.0,0.06051372]
[1741871092844,0.1809965,82891.0,82890.0,0.1206629]
[1741871093734,0.1206649,82889.0,82888.0,0.00018102]
[1741871094544,0.120697,82867.0,82864.0,0.0603501]
[1741871094838,0.120697,82867.0,82866.0,0.0803491]
[1741871095044,0.1206946,82869.0,82868.0,0.1206941]
[1741871095340,0.1810637,82863.0,82842.0,0.0603663]
[1741871095545,0.15896,82871.0,82843.0,0.15896]
[1741871095750,0.1810752,82858.0,82857.0,0.1207023]
[1741871096240,0.3717752,82858.0,82857.0,0.1207023]
[1741871096441,0.0603572,82858.0,82857.0,0.1207023]
[1741871096839,0.00018102,82861.0,82857.0,0.1207023]
[1741871097149,0.18124532,82861.0,82860.0,0.1207072]
[1741871097444,0.00018102,82861.0,82860.0,0.1407072]
[1741871097745,0.1206934,82870.0,82869.0,0.1206926]
[1741871097942,0.55596,82881.0,82879.0,0.120678]
[1741871098244,0.1206823,82880.0,82879.0,0.120678]
[1741871098752,0.120681,82878.0,82877.0,0.060341]
[1741871099334,0.318081,82878.0,82877.0,0.060341]
[1741871099540,0.1974,82878.0,82872.0,0.0603442]
[1741871099736,0.1206897,82872.0,82871.0,0.00018102]
[1741871100244,0.1974,82878.0,82876.0,0.1206839]
[1741871100442,0.70526395,83042.0,82886.0,0.1206693]
[1741871100443,0.3147678,82887.0,82886.0,0.1206693]
[1741871101245,0.000181,82888.0,82886.0,0.1206693]
[1741871101548,0.01176851,82901.0,82886.0,0.1206693]
[1741871101549,0.01176851,82901.0,82900.0,0.1206489]
[1741871101740,0.13241601,82901.0,82900.0,0.1206489]
[1741871101939,0.1206475,82901.0,82900.0,0.1206489]
[1741871102144,0.00181057,82907.0,82906.0,0.1206402]
[1741871102448,1.46351071,82919.0,82905.0,0.1206417]
[1741871102449,0.1206336,82911.0,82910.0,0.1206344]
[1741871102755,0.1809484,82913.0,82912.0,0.1206315]
[1741871103142,0.1941,82918.0,82917.0,0.1206242]
[1741871103342,0.06210443,82941.0,82898.0,0.00018102]
[1741871103343,0.2004,82931.0,82930.0,0.1206053]
[1741871103645,0.2004,82931.0,82923.0,0.0603074]
[1741871103646,0.0603065,82925.0,82923.0,0.0603074]
[1741871103840,0.1809205,82925.0,82924.0,0.120614]
[1741871104650,0.1206155,82923.0,82922.0,0.00018091]
[1741871105153,0.1206155,82923.0,82922.0,0.12079781]
[1741871106351,0.0603033,82930.0,82922.0,0.00018091]
[1741871106538,0.0603005,82933.0,82929.0,0.0603031]
[1741871106745,0.2192198,82934.0,82922.0,0.00018091]
[1741871106947,0.1206155,82923.0,82922.0,0.00018091]
[1741871107144,0.1206155,82923.0,82922.0,0.12079781]
[1741871107354,0.15892,82934.0,82927.0,0.0603046]
[1741871107653,0.15892,82934.0,82931.0,0.1809031]
[1741871107654,0.1206024,82932.0,82931.0,0.1809031]
[1741871107848,0.0602997,82935.0,82931.0,0.0603012]
[1741871108059,0.0602928,82944.0,82932.0,0.1883]
[1741871108255,0.1205959,82937.0,82936.0,0.1808945]
[1741871108654,0.1205932,82939.0,82938.0,0.1205922]
[1741871109048,0.1206009,82934.0,82933.0,0.1206007]
[1741871109754,0.1206053,82930.0,82929.0,0.1809074]
[1741871109951,0.0603062,82926.0,82899.0,0.060325]
[1741871110145,0.1206155,82923.0,82918.0,0.0603108]
[1741871110351,0.1206155,82923.0,82918.0,0.0603111]
[1741871110552,0.1206155,82923.0,82922.0,0.12079781]
[1741871110951,0.0603063,82925.0,82895.0,0.0603276]
[1741871111151,0.0724086,82911.0,82910.0,0.0603152]
[1741871111753,0.2191515,82920.0,82919.0,0.1206213]
[1741871112055,0.1809245,82925.0,82924.0,0.1206111]
[1741871112257,0.1206155,82923.0,82922.0,0.1809236]
[1741871112660,0.00018054,82928.0,82922.0,0.1809236]
[1741871112661,0.00018054,82928.0,82927.0,0.1206096]
[1741871112853,0.12078874,82928.0,82927.0,0.1206096]
[1741871113249,0.00018054,82928.0,82914.0,0.1929]
[1741871113449,0.0603076,82924.0,82923.0,0.1809154]
[1741871113955,0.00018054,82928.0,82927.0,0.1206096]
[1741871114954,0.00018054,82928.0,82923.0,0.3708]
[1741871114955,0.0603054,82927.0,82923.0,0.3708]
[1741871115149,0.1809355,82919.0,82918.0,0.0603106]
[1741871115353,0.1809283,82924.0,82923.0,0.1206096]
[1741871115562,0.0603085,82924.0,82923.0,0.1206096]
[1741871115748,0.1588,82927.0,82926.0,0.1206111]
[1741871115951,0.00018054,82928.0,82926.0,0.1206111]
[1741871116150,0.12078874,82928.0,82927.0,0.1206096]
[1741871116665,0.00018054,82928.0,82927.0,0.1206096]
[1741871116851,0.12078874,82928.0,82927.0,0.1206096]
[1741871117153,0.00018054,82928.0,82927.0,0.1206096]
[1741871117354,0.00018054,82928.0,82927.0,0.3145096]
[1741871117854,0.12078874,82928.0,82927.0,0.3145096]
[1741871118053,0.12078874,82928.0,82926.0,0.184]
[1741871118054,0.00018054,82928.0,82890.0,0.2719921]
[1741871118359,0.00018054,82928.0,82875.0,0.44899723]
[1741871118360,0.0603097,82921.0,82885.0,0.0603349]
[1741871118549,0.1206635,82890.0,82889.0,0.3868]
[1741871118860,0.1810118,82884.0,82881.0,0.0603377]
[1741871119058,0.1206751,82882.0,82881.0,0.0603377]
[1741871119358,0.120678,82880.0,82879.0,0.35745869]
[1741871119561,0.120678,82880.0,82879.0,0.47813819]
[1741871119950,0.1838,82881.0,82879.0,0.47813819]
[1741871120157,0.1838,82881.0,82880.0,0.120678]
[1741871120461,0.1838,82881.0,82880.0,0.313578]
[1741871120666,0.1838,82887.0,82886.0,0.1206693]
[1741871121962,0.00018091,82888.0,82886.0,0.1206693]
[1741871122255,0.00018091,82888.0,82887.0,0.2954678]
[1741871122459,0.12084731,82888.0,82887.0,0.5054678]
[1741871122662,0.12084731,82888.0,82887.0,0.2954678]
[1741871123256,0.00018091,82888.0,82887.0,0.2954678]
[1741871123449,0.371,82902.0,82887.0,0.1948]
[1741871123652,0.491646,82902.0,82901.0,0.1206475]
[1741871124357,0.1809791,82899.0,82898.0,0.1206511]
[1741871124849,0.1809791,82899.0,82890.0,0.06051241]
[1741871124850,0.120662,82891.0,82890.0,0.00018091]
[1741871125054,0.279462,82891.0,82890.0,0.12084441]
[1741871125657,0.1588,82891.0,82890.0,0.12084441]
[1741871125864,0.279462,82891.0,82890.0,0.12084441]
[1741871126065,0.1588,82891.0,82890.0,0.12084441]
[1741871126261,0.279462,82891.0,82890.0,0.12084441]
[1741871126459,0.120662,82891.0,82890.0,0.12084441]
[1741871126658,0.1206524,82898.0,82897.0,0.1206533]
[1741871127166,0.3434,82903.0,82902.0,0.120646]
[1741871127357,0.4640446,82903.0,82902.0,0.120646]
[1741871127557,0.1588,82903.0,82902.0,0.120646]
[1741871127757,0.1836,82906.0,82905.0,0.1206417]
[1741871128561,4e-08,82907.0,82906.0,0.1206402]
[1741871128756,4e-08,82907.0,82906.0,0.5280402]
[1741871128953,5e-08,82918.0,82917.0,0.1206242]
[1741871129257,0.1426157,82922.0,82921.0,0.1206184]
[1741871129564,0.1426157,82922.0,82921.0,0.36225492]
[1741871129769,0.1759,82923.0,82922.0,0.1206169]
[1741871130060,0.1759,82923.0,82922.0,0.01163652]
[1741871130061,0.2965155,82923.0,82922.0,0.01163652]
[1741871130259,0.2965155,82923.0,82914.0,0.00018091]
[1741871130260,0.1206271,82915.0,82914.0,0.00018091]
[1741871130460,0.1206271,82915.0,82914.0,0.01182016]
[1741871130766,0.1206271,82915.0,82914.0,0.12080951]
[1741871131562,0.3714,82917.0,82916.0,0.1206256]
[1741871131762,0.1206232,82918.0,82914.0,0.06049451]
[1741871131763,8.188e-05,82924.0,82923.0,0.1206155]
[1741871132064,0.12069588,82924.0,82923.0,0.1206155]
[1741871132260,0.1206271,82915.0,82914.0,0.12080711]
[1741871132461,0.1206271,82915.0,82914.0,0.00018091]
[1741871132651,0.1809643,82908.0,82907.0,0.1809486]
[1741871133056,0.1809643,82908.0,82902.0,0.0603226]
[1741871133057,0.1206446,82903.0,82902.0,0.0603226]
[1741871133261,0.0603258,82899.0,82896.0,0.47977394]
[1741871133463,0.1206533,82897.0,82896.0,0.47977394]
[1741871133665,0.1206533,82897.0,82896.0,0.49143074]
[1741871133961,0.3644,82898.0,82897.0,0.1206533]
[1741871134166,0.00018091,82905.0,82904.0,0.1206431]
[1741871134362,0.12082261,82905.0,82904.0,0.0116568]
[1741871134562,0.12082261,82905.0,82904.0,0.01165641]
[1741871134862,0.1206533,82897.0,82891.0,0.43087723]
[1741871135369,0.1206533,82897.0,82896.0,0.47977884]
[1741871135768,0.27205371,82940.0,82896.0,0.35912414]
[1741871135965,0.12082521,82905.0,82904.0,0.1206431]
[1741871136270,0.0603251,82900.0,82899.0,0.1206443]
[1741871136467,0.3093439,82904.0,82903.0,0.1206446]
[1741871136654,0.3093439,82904.0,82901.0,0.1206465]
[1741871136655,0.1206475,82902.0,82901.0,0.1206465]
[1741871136968,0.1809711,82902.0,82901.0,0.01169533]
[1741871137155,0.1206649,82889.0,82883.0,0.1901]
[1741871137359,0.1206649,82889.0,82888.0,0.01187819]
[1741871137663,0.1206649,82889.0,82888.0,0.00018091]
[1741871137860,0.1206649,82889.0,82856.0,0.0603558]
[1741871137861,0.0603338,82888.0,82856.0,0.1207123]
[1741871138060,0.0603338,82888.0,82876.0,0.13817723]
[1741871138061,0.1206824,82877.0,82876.0,0.13817723]
[1741871138261,0.2918226,82877.0,82876.0,0.13817723]
[1741871138458,0.1207072,82860.0,82842.0,0.1889]
[1741871138658,0.2795072,82860.0,82848.0,0.1806]
[1741871138858,0.2795072,82860.0,82846.0,0.62201066]
[1741871139065,0.2795072,82860.0,82851.0,0.00018103]
[1741871140061,0.2795072,82860.0,82851.0,0.12090083]
[1741871140062,0.1207188,82852.0,82851.0,0.12090083]
[1741871140266,0.1207188,82852.0,82851.0,0.12090133]
[1741871141174,0.1207188,82852.0,82851.0,0.00018103]
[1741871141674,0.1207188,82852.0,82851.0,0.12090133]
[1741871141860,0.1207188,82852.0,82851.0,0.00018103]
[1741871142276,0.1894,82853.0,82851.0,0.00018103]
[1741871142573,0.3101178,82853.0,82852.0,0.1207188]
[1741871142767,0.0123402,82877.0,82852.0,0.1855]
[1741871143070,1.40184,82865.0,82864.0,0.1207013]
[1741871143270,1.40184,82865.0,82862.0,0.0603515]
[1741871143465,0.0603534,82861.0,82852.0,0.1855]
[1741871143666,0.1207174,82853.0,82852.0,0.3062184]
[1741871144171,0.1207174,82853.0,82852.0,0.4902184]
[1741871144870,0.1816,82854.0,82853.0,0.1207174]
[1741871145070,0.3023159,82854.0,82853.0,0.3062174]
[1741871145473,0.3023013,82864.0,82863.0,0.1207028]
[1741871146374,0.3023013,82864.0,82863.0,0.3053028]
[1741871146969,1.40248,82865.0,82864.0,0.1207013]
[1741871147167,0.1206999,82865.0,82864.0,0.5495513]
[1741871147369,0.00018103,82868.0,82864.0,0.42885]
[1741871147568,0.00018103,82868.0,82867.0,0.120697]
[1741871148571,0.1726,82914.0,82864.0,0.3685]
[1741871148572,0.16065109,82885.0,82864.0,0.3685]
[1741871148874,0.00181109,82885.0,82884.0,0.1206722]
[1741871149466,0.00181109,82885.0,82884.0,0.4916722]
[1741871150273,0.00181109,82885.0,82884.0,0.371]
[1741871150274,0.12248189,82885.0,82884.0,0.371]
[1741871150482,0.1206824,82877.0,82876.0,0.00018103]
[1741871150674,0.1206824,82877.0,82876.0,0.12086493]
[1741871150972,0.15884,82881.0,82876.0,0.00018103]
[1741871151171,0.279518,82881.0,82880.0,0.120678]
[1741871151372,0.0603325,82889.0,82884.0,0.1206722]
[1741871151573,0.3023933,82891.0,82884.0,0.1206722]
[1741871151770,0.1206637,82890.0,82884.0,0.1206722]
[1741871152074,0.00018103,82893.0,82884.0,0.1206722]
[1741871152374,0.00018103,82893.0,82892.0,0.1206606]
[1741871152964,0.12084013,82893.0,82892.0,0.2999606]
[1741871154179,0.00018103,82893.0,82892.0,0.2999606]
[1741871154675,0.12084013,82893.0,82892.0,0.2999606]
[1741871156780,0.0603382,82884.0,82883.0,0.1809973]
[1741871157972,0.1206706,82886.0,82876.0,0.00018103]
[1741871157973,0.0603375,82883.0,82876.0,0.00018103]
[1741871158168,0.0603353,82886.0,82876.0,0.00018103]
[1741871158169,0.1206824,82877.0,82876.0,0.00018103]
[1741871158371,0.2794824,82877.0,82876.0,0.00018103]
[1741871158679,0.2794824,82877.0,82876.0,0.12086493]
[1741871158872,0.2794824,82877.0,82876.0,0.00018103]
[1741871159076,0.2794824,82877.0,82876.0,0.12086493]
[1741871159783,0.1206824,82877.0,82876.0,0.12086453]
[1741871159978,0.1206824,82877.0,82876.0,0.24154803]
[1741871160280,0.1206824,82877.0,82876.0,0.00018103]
[1741871161073,0.2706824,82877.0,82876.0,3e-08]
[1741871161269,0.4432824,82877.0,82876.0,3e-08]
[1741871162381,0.6035424,82860.0,82835.0,0.4306559]
[1741871162578,0.1207421,82836.0,82835.0,0.4306559]
[1741871162881,0.2795021,82836.0,82835.0,0.4306559]
[1741871163582,0.0603718,82835.0,82834.0,0.1207436]
[1741871164091,0.4180718,82835.0,82834.0,0.1207436]
[1741871164285,0.1207465,82833.0,82832.0,0.0603726]
[1741871164982,0.4180718,82835.0,82827.0,0.00018103]
[1741871164983,0.1207538,82828.0,82827.0,0.00018103]
[1741871165783,0.3071538,82828.0,82827.0,0.12093633]
[1741871165989,0.3071538,82828.0,82827.0,0.30383633]
[1741871166189,0.0123406,82835.0,82827.0,0.18308103]
[1741871166384,0.1811257,82834.0,82833.0,0.0603726]
[1741871166590,0.4659451,82834.0,82833.0,0.0603726]
[1741871166891,0.1588,82834.0,82833.0,0.0603726]
[1741871167093,0.01224539,82842.0,82833.0,0.0603726]
[1741871167285,0.0603717,82836.0,82833.0,0.2414818]
[1741871167485,0.0603717,82836.0,82835.0,0.1207436]
[1741871168392,0.1207436,82835.0,82828.0,0.0603766]
[1741871168594,0.1207538,82828.0,82827.0,0.12093523]
[1741871169095,0.0603753,82831.0,82827.0,0.12093363]
[1741871169291,0.1207538,82830.0,82829.0,0.1207509]
[1741871169493,0.1207538,82830.0,82827.0,0.12093363]
[1741871169494,0.1207538,82828.0,82827.0,0.00018103]
[1741871170098,0.8481,82828.0,82811.0,0.0483]
[1741871170398,0.8481,82828.0,82779.0,0.060412]
[1741871170399,0.1208019,82795.0,82779.0,0.060412]
[1741871170587,0.1208107,82789.0,82776.0,0.3735]
[1741871170789,0.1208107,82789.0,82776.0,0.3018284]
[1741871171085,0.13271654,82789.0,82760.0,0.1925]
[1741871171284,0.13271654,82789.0,82773.0,0.0604167]
[1741871171491,0.13271654,82789.0,82782.0,0.0604099]
[1741871171697,0.29151654,82789.0,82780.0,0.00018117]
[1741871171896,0.44151654,82789.0,82788.0,0.3811979]
[1741871172289,0.29151654,82789.0,82788.0,0.3811979]
[1741871172594,0.2796507,82789.0,82788.0,0.3811979]
[1741871173190,0.29163611,82789.0,82788.0,0.3811979]
[1741871173694,0.1208224,82781.0,82780.0,0.00018117]
[1741871174098,0.1208224,82781.0,82780.0,0.12100497]
[1741871174595,0.4793224,82781.0,82780.0,0.00018117]
[1741871174989,0.4793224,82781.0,82780.0,7e-08]
[1741871175614,0.6293224,82781.0,82780.0,7e-08]
[1741871175818,0.6811,82781.0,82748.0,0.03111]
[1741871176008,0.27287787,82763.0,82688.0,0.4194]
[1741871176208,0.74068,82780.0,82710.0,0.1843]
[1741871176209,0.0604603,82714.0,82710.0,0.1843]
[1741871176405,0.15888,82713.0,82712.0,0.1209232]
[1741871176615,1.40392,82721.0,82720.0,0.1209115]
[1741871176815,1.4032,82721.0,82720.0,0.1209115]
[1741871177212,0.1209115,82720.0,82719.0,0.3693]
[1741871177412,0.1209115,82720.0,82719.0,0.4902129]
[1741871177620,1.4032,82721.0,82720.0,0.1209115]
[1741871177621,1.52411,82721.0,82720.0,0.1209115]
[1741871177809,1.52411,82721.0,82720.0,0.4874115]
[1741871178008,1.4032,82721.0,82720.0,0.4874115]
[1741871178517,0.15892,82748.0,82720.0,0.5065]
[1741871178707,0.2797905,82748.0,82747.0,0.120872]
[1741871179019,0.15892,82748.0,82720.0,0.3665]
[1741871179217,0.1209008,82732.0,82731.0,0.0604464]
[1741871179413,0.0604389,82743.0,82720.0,0.3665]
[1741871179616,0.1813444,82736.0,82735.0,0.1208835]
[1741871179919,0.15892,82744.0,82713.0,0.15892]